[Event "Titled Tuesday Blitz January 10 Early 2023"]
[White "Spata, German"]
[Black "Kuznecovs, Nikita"]
[WhiteFideId "113026"]
[BlackFideId "11604557"]
[WhiteElo "2383"]
[BlackElo "2287"]
[Result "1-0"]
[Round "06"]
[TimeControl "180+2"]
[Date "2023.01.10"]
[WhiteClock "0:00:26"]
[BlackClock "0:00:01"]

1. Nf3 {[%clk 0:03:00]}  d5 {[%clk 0:02:58]} 2. e3 {[%clk 0:03:01]}  c6 {[%clk 0:02:57]} 3. b3 {[%clk 0:03:02]}  Bf5 {[%clk 0:02:57]} 4. Bb2 {[%clk 0:03:03]}  h6 {[%clk 0:02:56]} 5. Be2 {[%clk 0:03:04]}  e6 {[%clk 0:02:56]} 6. O-O {[%clk 0:03:04]}  Nd7 {[%clk 0:02:56]} 7. c4 {[%clk 0:03:05]}  Ngf6 {[%clk 0:02:55]} 8. cxd5 {[%clk 0:03:05]}  exd5 {[%clk 0:02:55]} 9. d3 {[%clk 0:03:05]}  Bd6 {[%clk 0:02:54]} 10. a3 {[%clk 0:03:06]}  O-O {[%clk 0:02:53]} 11. Nbd2 {[%clk 0:03:07]}  Re8 {[%clk 0:02:53]} 12. Re1 {[%clk 0:03:08]}  Nf8 {[%clk 0:02:41]} 13. b4 {[%clk 0:03:07]}  a5 {[%clk 0:02:40]} 14. Qb3 {[%clk 0:03:07]}  Ne6 {[%clk 0:02:36]} 15. Nd4 {[%clk 0:03:04]}  Bg6 {[%clk 0:02:15]} 16. N2f3 {[%clk 0:03:01]}  Ng5 {[%clk 0:02:09]} 17. Bf1 {[%clk 0:02:57]}  Qe7 {[%clk 0:02:04]} 18. Bc3 {[%clk 0:02:57]}  Ra7 {[%clk 0:01:38]} 19. Qb2 {[%clk 0:02:55]}  Nd7 {[%clk 0:01:17]} 20. h3 {[%clk 0:02:47]}  Rea8 {[%clk 0:01:15]} 21. Be2 {[%clk 0:02:43]}  Kh7 {[%clk 0:01:13]} 22. Nxg5+ {[%clk 0:02:36]}  hxg5 {[%clk 0:01:12]} 23. Nf3 {[%clk 0:02:36]}  f6 {[%clk 0:01:12]} 24. bxa5 {[%clk 0:02:33]}  Nc5 {[%clk 0:01:11]} 25. Qc2 {[%clk 0:02:21]}  Ne6 {[%clk 0:01:05]} 26. Bf1 {[%clk 0:02:17]}  Bc7 {[%clk 0:00:59]} 27. Bb4 {[%clk 0:02:13]}  Qd7 {[%clk 0:00:58]} 28. Rab1 {[%clk 0:02:10]}  Bxa5 {[%clk 0:00:58]} 29. Rb3 {[%clk 0:02:02]}  Bc7 {[%clk 0:00:49]} 30. Reb1 {[%clk 0:01:58]}  b6 {[%clk 0:00:49]} 31. Qb2 {[%clk 0:01:50]}  c5 {[%clk 0:00:45]} 32. Bc3 {[%clk 0:01:50]}  c4 {[%clk 0:00:26]} 33. Rb5 {[%clk 0:01:43]}  Rxa3 {[%clk 0:00:26]} 34. Rd1 {[%clk 0:01:35]}  Ra2 {[%clk 0:00:21]} 35. Qb4 {[%clk 0:01:31]}  R8a4 {[%clk 0:00:19]} 36. Qb1 {[%clk 0:01:31]}  Nc5 {[%clk 0:00:17]} 37. Ne1 {[%clk 0:01:26]}  R4a3 {[%clk 0:00:14]} 38. Bb4 {[%clk 0:01:20]}  Qxb5 {[%clk 0:00:14]} 39. Bxa3 {[%clk 0:01:21]}  Qxb1 {[%clk 0:00:14]} 40. Rxb1 {[%clk 0:01:21]}  cxd3 {[%clk 0:00:12]} 41. Bxc5 {[%clk 0:01:17]}  d2 {[%clk 0:00:12]} 42. Nd3 {[%clk 0:01:11]}  bxc5 {[%clk 0:00:12]} 43. Rd1 {[%clk 0:01:09]}  c4 {[%clk 0:00:11]} 44. Nb4 {[%clk 0:01:08]}  Rb2 {[%clk 0:00:11]} 45. Nxd5 {[%clk 0:01:08]}  Ba5 {[%clk 0:00:12]} 46. Bxc4 {[%clk 0:01:07]}  Rc2 {[%clk 0:00:12]} 47. Bb3 {[%clk 0:01:04]}  Rc1 {[%clk 0:00:13]} 48. Kf1 {[%clk 0:01:05]}  Bc2 {[%clk 0:00:13]} 49. Bxc2+ {[%clk 0:01:04]}  Rxc2 {[%clk 0:00:13]} 50. Ke2 {[%clk 0:01:05]}  Rc5 {[%clk 0:00:14]} 51. e4 {[%clk 0:01:05]}  f5 {[%clk 0:00:14]} 52. f3 {[%clk 0:01:04]}  fxe4 {[%clk 0:00:14]} 53. fxe4 {[%clk 0:01:04]}  Rc4 {[%clk 0:00:12]} 54. Kd3 {[%clk 0:01:04]}  Rc1 {[%clk 0:00:12]} 55. Ke2 {[%clk 0:00:58]}  Kg6 {[%clk 0:00:11]} 56. Ne3 {[%clk 0:00:57]}  Rc8 {[%clk 0:00:10]} 57. Nf1 {[%clk 0:00:55]}  Re8 {[%clk 0:00:10]} 58. Kd3 {[%clk 0:00:55]}  Rd8+ {[%clk 0:00:10]} 59. Ke2 {[%clk 0:00:55]}  Re8 {[%clk 0:00:11]} 60. Kf3 {[%clk 0:00:55]}  Rd8 {[%clk 0:00:10]} 61. Ke3 {[%clk 0:00:55]}  Bb6+ {[%clk 0:00:09]} 62. Ke2 {[%clk 0:00:56]}  Ba5 {[%clk 0:00:09]} 63. Nxd2 {[%clk 0:00:55]}  Kf6 {[%clk 0:00:06]} 64. Nf3 {[%clk 0:00:54]}  Rb8 {[%clk 0:00:06]} 65. Rd6+ {[%clk 0:00:53]}  Kf7 {[%clk 0:00:06]} 66. Rd5 {[%clk 0:00:52]}  Bd8 {[%clk 0:00:04]} 67. Nxg5+ {[%clk 0:00:52]}  Bxg5 {[%clk 0:00:04]} 68. Rxg5 {[%clk 0:00:51]}  Kf6 {[%clk 0:00:04]} 69. Rf5+ {[%clk 0:00:51]}  Ke6 {[%clk 0:00:05]} 70. Rg5 {[%clk 0:00:49]}  Rb2+ {[%clk 0:00:06]} 71. Kf3 {[%clk 0:00:49]}  Kf6 {[%clk 0:00:07]} 72. Rf5+ {[%clk 0:00:49]}  Ke6 {[%clk 0:00:07]} 73. Ra5 {[%clk 0:00:48]}  Rb1 {[%clk 0:00:07]} 74. Ra6+ {[%clk 0:00:47]}  Kf7 {[%clk 0:00:07]} 75. h4 {[%clk 0:00:43]}  Rh1 {[%clk 0:00:07]} 76. g3 {[%clk 0:00:43]}  Re1 {[%clk 0:00:07]} 77. Kf4 {[%clk 0:00:42]}  Rb1 {[%clk 0:00:07]} 78. Ra7+ {[%clk 0:00:42]}  Kf6 {[%clk 0:00:07]} 79. e5+ {[%clk 0:00:42]}  Kg6 {[%clk 0:00:07]} 80. Ra6+ {[%clk 0:00:41]}  Kf7 {[%clk 0:00:08]} 81. h5 {[%clk 0:00:37]}  Rf1+ {[%clk 0:00:08]} 82. Kg5 {[%clk 0:00:36]}  Re1 {[%clk 0:00:04]} 83. e6+ {[%clk 0:00:34]}  Kf8 {[%clk 0:00:04]} 84. g4 {[%clk 0:00:31]}  Re4 {[%clk 0:00:03]} 85. Kf5 {[%clk 0:00:31]}  Re1 {[%clk 0:00:03]} 86. Kg6 {[%clk 0:00:28]}  Rg1 {[%clk 0:00:01]} 87. g5 {[%clk 0:00:27]}  Rg2 {[%clk 0:00:01]} 88. Ra7 {[%clk 0:00:26]} 1-0


[Site "https://www.chess.com"]

[Event "Titled Tuesday Blitz January 10 Early 2023"]
[White "Arngrimsson, Dagur"]
[Black "Leve, Nitai"]
[WhiteFideId "2301288"]
[BlackFideId "2006898"]
[WhiteElo "2370"]
[BlackElo "2128"]
[Result "0-1"]
[Round "06"]
[TimeControl "180+2"]
[Date "2023.01.10"]
[WhiteClock "0:00:14"]
[BlackClock "0:00:18"]

1. e4 {[%clk 0:03:00]}  c6 {[%clk 0:02:53]} 2. d4 {[%clk 0:03:00]}  d5 {[%clk 0:02:51]} 3. Nc3 {[%clk 0:03:01]}  dxe4 {[%clk 0:02:51]} 4. Nxe4 {[%clk 0:03:01]}  Nf6 {[%clk 0:02:51]} 5. Ng5 {[%clk 0:02:43]}  h6 {[%clk 0:02:48]} 6. N5h3 {[%clk 0:02:40]}  Bf5 {[%clk 0:02:38]} 7. Bd3 {[%clk 0:02:38]}  Bxd3 {[%clk 0:02:32]} 8. Qxd3 {[%clk 0:02:39]}  e6 {[%clk 0:02:32]} 9. Nf3 {[%clk 0:02:37]}  Nbd7 {[%clk 0:02:21]} 10. Bd2 {[%clk 0:02:34]}  Qc7 {[%clk 0:02:20]} 11. O-O-O {[%clk 0:02:34]}  O-O-O {[%clk 0:02:19]} 12. Kb1 {[%clk 0:02:32]}  c5 {[%clk 0:02:18]} 13. Bf4 {[%clk 0:02:27]}  Bd6 {[%clk 0:02:17]} 14. Bxd6 {[%clk 0:02:22]}  Qxd6 {[%clk 0:02:18]} 15. Qa3 {[%clk 0:02:22]}  Qb6 {[%clk 0:02:16]} 16. dxc5 {[%clk 0:02:12]}  Nxc5 {[%clk 0:02:17]} 17. Ne5 {[%clk 0:02:11]}  Rxd1+ {[%clk 0:01:59]} 18. Rxd1 {[%clk 0:02:12]}  Nd5 {[%clk 0:01:59]} 19. c4 {[%clk 0:01:43]}  Nb4 {[%clk 0:01:49]} 20. Nxf7 {[%clk 0:01:37]}  Rf8 {[%clk 0:01:47]} 21. Rd6 {[%clk 0:01:27]}  Qc7 {[%clk 0:01:42]} 22. Qxb4 {[%clk 0:01:21]}  Rxf7 {[%clk 0:01:35]} 23. Rd1 {[%clk 0:01:00]}  g5 {[%clk 0:01:31]} 24. f3 {[%clk 0:00:57]}  b6 {[%clk 0:01:18]} 25. Qb5 {[%clk 0:00:51]}  Rd7 {[%clk 0:01:08]} 26. Rxd7 {[%clk 0:00:48]}  Nxd7 {[%clk 0:01:09]} 27. Nf2 {[%clk 0:00:47]}  Qxh2 {[%clk 0:01:02]} 28. Qc6+ {[%clk 0:00:47]}  Kd8 {[%clk 0:00:59]} 29. Ng4 {[%clk 0:00:26]}  Qg1+ {[%clk 0:00:57]} 30. Kc2 {[%clk 0:00:25]}  Qxg2+ {[%clk 0:00:57]} 31. Kc3 {[%clk 0:00:24]}  h5 {[%clk 0:00:53]} 32. Ne3 {[%clk 0:00:20]}  Qe2 {[%clk 0:00:44]} 33. Qxe6 {[%clk 0:00:20]}  Qxf3 {[%clk 0:00:24]} 34. Kc2 {[%clk 0:00:14]}  Qf2+ {[%clk 0:00:20]} 35. Kd3 {[%clk 0:00:14]}  Qxb2 {[%clk 0:00:18]} 36. Nd5 {[%clk 0:00:14]}  Nc5+ {[%clk 0:00:17]} 37. Ke3 {[%clk 0:00:14]}  Nxe6 {[%clk 0:00:17]} 38. c5 {[%clk 0:00:14]}  Qd4+ {[%clk 0:00:17]} 39. Kf3 {[%clk 0:00:13]}  Qxd5+ {[%clk 0:00:18]} 40. Ke3 {[%clk 0:00:14]}  Qxc5+ {[%clk 0:00:19]} 41. Ke4 {[%clk 0:00:15]}  Qd4+ {[%clk 0:00:18]} 42. Kf5 {[%clk 0:00:14]}  Ke7 {[%clk 0:00:18]} 0-1


[Site "https://www.chess.com"]

[Event "Titled Tuesday Blitz January 10 Early 2023"]
[White "Dinu, Dumitru-Daniel"]
[Black "Hirneise, Jens"]
[WhiteFideId "1208403"]
[BlackFideId "24614734"]
[WhiteElo "2203"]
[BlackElo "2277"]
[Result "1-0"]
[Round "06"]
[TimeControl "180+2"]
[Date "2023.01.10"]
[WhiteClock "0:00:09"]
[BlackClock "0:00:16"]

1. e4 {[%clk 0:03:00]}  c5 {[%clk 0:02:59]} 2. Be2 {[%clk 0:02:59]}  b6 {[%clk 0:02:57]} 3. f4 {[%clk 0:02:57]}  Bb7 {[%clk 0:02:57]} 4. d3 {[%clk 0:02:58]}  Nc6 {[%clk 0:02:57]} 5. Nf3 {[%clk 0:02:57]}  g6 {[%clk 0:02:54]} 6. O-O {[%clk 0:02:57]}  Bg7 {[%clk 0:02:55]} 7. c3 {[%clk 0:02:58]}  d5 {[%clk 0:02:55]} 8. e5 {[%clk 0:02:58]}  d4 {[%clk 0:02:49]} 9. c4 {[%clk 0:02:54]}  f6 {[%clk 0:02:45]} 10. Nbd2 {[%clk 0:02:43]}  Nh6 {[%clk 0:02:40]} 11. Ne4 {[%clk 0:02:42]}  O-O {[%clk 0:02:38]} 12. exf6 {[%clk 0:02:37]}  exf6 {[%clk 0:02:38]} 13. Qe1 {[%clk 0:02:32]}  Nf5 {[%clk 0:02:36]} 14. Qf2 {[%clk 0:02:29]}  Re8 {[%clk 0:02:34]} 15. Bd2 {[%clk 0:02:27]}  Ne3 {[%clk 0:02:31]} 16. Bxe3 {[%clk 0:02:22]}  dxe3 {[%clk 0:02:30]} 17. Qg3 {[%clk 0:02:19]}  Nd4 {[%clk 0:02:29]} 18. Nxd4 {[%clk 0:02:00]}  Qxd4 {[%clk 0:02:30]} 19. f5 {[%clk 0:01:50]}  g5 {[%clk 0:02:01]} 20. Nd6 {[%clk 0:01:42]}  Re7 {[%clk 0:01:52]} 21. Nxb7 {[%clk 0:01:29]}  Rxb7 {[%clk 0:01:53]} 22. Qf3 {[%clk 0:01:02]}  Rab8 {[%clk 0:01:51]} 23. b3 {[%clk 0:01:01]}  Rd7 {[%clk 0:01:43]} 24. Rad1 {[%clk 0:00:59]}  Re8 {[%clk 0:01:42]} 25. Kh1 {[%clk 0:00:54]}  Bf8 {[%clk 0:01:40]} 26. Qh5 {[%clk 0:00:52]}  Re5 {[%clk 0:01:34]} 27. Bf3 {[%clk 0:00:42]}  Kg7 {[%clk 0:01:27]} 28. Rde1 {[%clk 0:00:38]}  Bd6 {[%clk 0:01:06]} 29. Be4 {[%clk 0:00:28]}  Rde7 {[%clk 0:00:59]} 30. Rf3 {[%clk 0:00:25]}  Rxe4 {[%clk 0:00:48]} 31. dxe4 {[%clk 0:00:21]}  Rxe4 {[%clk 0:00:42]} 32. Rh3 {[%clk 0:00:20]}  Rh4 {[%clk 0:00:41]} 33. Rxh4 {[%clk 0:00:20]}  gxh4 {[%clk 0:00:42]} 34. Qf3 {[%clk 0:00:18]}  Bf4 {[%clk 0:00:29]} 35. Qg4+ {[%clk 0:00:15]}  Bg5 {[%clk 0:00:26]} 36. Qf3 {[%clk 0:00:16]}  Qd2 {[%clk 0:00:23]} 37. Qf1 {[%clk 0:00:11]}  Qxa2 {[%clk 0:00:19]} 38. Ra1 {[%clk 0:00:10]}  e2 {[%clk 0:00:17]} 39. Qe1 {[%clk 0:00:09]}  Qd2 {[%clk 0:00:16]} 40. Rxa7+ {[%clk 0:00:09]}  Kh6 {[%clk 0:00:16]} 41. Ra1 {[%clk 0:00:07]}  Kh5 {[%clk 0:00:12]} 42. h3 {[%clk 0:00:08]}  Bf4 {[%clk 0:00:11]} 43. Rb1 {[%clk 0:00:06]}  Qd3 {[%clk 0:00:08]} 44. Rb2 {[%clk 0:00:04]}  Bg3 {[%clk 0:00:04]} 45. Qxe2+ {[%clk 0:00:04]}  Qxe2 {[%clk 0:00:04]} 46. Rxe2 {[%clk 0:00:05]}  Kg5 {[%clk 0:00:05]} 47. Re6 {[%clk 0:00:05]}  Kxf5 {[%clk 0:00:05]} 48. Rxb6 {[%clk 0:00:06]}  Bf2 {[%clk 0:00:05]} 49. Rb7 {[%clk 0:00:06]}  h5 {[%clk 0:00:05]} 50. b4 {[%clk 0:00:06]}  cxb4 {[%clk 0:00:05]} 51. Rxb4 {[%clk 0:00:06]}  Ke6 {[%clk 0:00:04]} 52. Rb5 {[%clk 0:00:06]}  f5 {[%clk 0:00:04]} 53. c5 {[%clk 0:00:04]}  Kd5 {[%clk 0:00:05]} 54. c6+ {[%clk 0:00:05]}  Kxc6 {[%clk 0:00:05]} 55. Rxf5 {[%clk 0:00:05]}  Bg3 {[%clk 0:00:06]} 56. Rxh5 {[%clk 0:00:06]}  Kd6 {[%clk 0:00:06]} 57. Kg1 {[%clk 0:00:06]}  Ke6 {[%clk 0:00:07]} 58. Kf1 {[%clk 0:00:06]}  Kf6 {[%clk 0:00:08]} 59. Ke2 {[%clk 0:00:07]}  Kg6 {[%clk 0:00:08]} 60. Rd5 {[%clk 0:00:06]}  Kf6 {[%clk 0:00:09]} 61. Kf3 {[%clk 0:00:07]}  Kg6 {[%clk 0:00:10]} 62. Kg4 {[%clk 0:00:06]}  Kf6 {[%clk 0:00:10]} 63. Rh5 {[%clk 0:00:06]}  Kg6 {[%clk 0:00:11]} 64. Rxh4 {[%clk 0:00:07]}  Bxh4 {[%clk 0:00:11]} 65. Kxh4 {[%clk 0:00:07]}  Kh6 {[%clk 0:00:12]} 66. Kg4 {[%clk 0:00:08]}  Kg6 {[%clk 0:00:13]} 67. h4 {[%clk 0:00:08]}  Kh6 {[%clk 0:00:14]} 68. Kf5 {[%clk 0:00:09]}  Kh5 {[%clk 0:00:14]} 69. g4+ {[%clk 0:00:09]}  Kxh4 {[%clk 0:00:15]} 70. g5 {[%clk 0:00:09]}  Kh5 {[%clk 0:00:16]} 71. Kf6 {[%clk 0:00:09]}  Kg4 {[%clk 0:00:16]} 72. g6 {[%clk 0:00:09]} 1-0


[Site "https://www.chess.com"]

[Event "Titled Tuesday Blitz January 10 Early 2023"]
[White "Tikhonov, Viacheslav"]
[Black "Mogirzan, Matei-Valeriu"]
[WhiteFideId "44196407"]
[BlackFideId "1257455"]
[WhiteElo "2220"]
[BlackElo "1813"]
[Result "1-0"]
[Round "06"]
[TimeControl "180+2"]
[Date "2023.01.10"]
[WhiteClock "0:01:29"]
[BlackClock "0:00:01"]

1. d4 {[%clk 0:03:00]}  Nf6 {[%clk 0:02:58]} 2. c4 {[%clk 0:02:58]}  g6 {[%clk 0:02:51]} 3. Nc3 {[%clk 0:02:58]}  d5 {[%clk 0:02:47]} 4. cxd5 {[%clk 0:02:59]}  Nxd5 {[%clk 0:02:48]} 5. e4 {[%clk 0:02:59]}  Nxc3 {[%clk 0:02:47]} 6. bxc3 {[%clk 0:03:00]}  Bg7 {[%clk 0:02:47]} 7. Nf3 {[%clk 0:03:00]}  c5 {[%clk 0:02:45]} 8. Bb5+ {[%clk 0:03:01]}  Nd7 {[%clk 0:02:33]} 9. O-O {[%clk 0:02:59]}  O-O {[%clk 0:02:29]} 10. Bg5 {[%clk 0:02:58]}  cxd4 {[%clk 0:02:18]} 11. cxd4 {[%clk 0:02:59]}  Qa5 {[%clk 0:02:14]} 12. Bxd7 {[%clk 0:02:57]}  Bxd7 {[%clk 0:02:10]} 13. Bxe7 {[%clk 0:02:58]}  Rfe8 {[%clk 0:02:10]} 14. Bc5 {[%clk 0:02:45]}  b6 {[%clk 0:01:56]} 15. Bd6 {[%clk 0:02:41]}  Rxe4 {[%clk 0:01:53]} 16. Be5 {[%clk 0:02:41]}  Qd5 {[%clk 0:01:42]} 17. Bxg7 {[%clk 0:02:39]}  Kxg7 {[%clk 0:01:43]} 18. Re1 {[%clk 0:02:34]}  Rae8 {[%clk 0:01:40]} 19. Qd2 {[%clk 0:02:29]}  Bc6 {[%clk 0:01:27]} 20. Rxe4 {[%clk 0:02:27]}  Rxe4 {[%clk 0:01:25]} 21. h3 {[%clk 0:02:25]}  Qc4 {[%clk 0:00:37]} 22. Re1 {[%clk 0:02:24]}  Rxe1+ {[%clk 0:00:35]} 23. Nxe1 {[%clk 0:02:23]}  Bd5 {[%clk 0:00:32]} 24. a3 {[%clk 0:02:19]}  a5 {[%clk 0:00:22]} 25. Nc2 {[%clk 0:02:16]}  Qa2 {[%clk 0:00:16]} 26. Qc3 {[%clk 0:02:14]}  Qb3 {[%clk 0:00:15]} 27. Qd2 {[%clk 0:02:09]}  b5 {[%clk 0:00:14]} 28. Ne3 {[%clk 0:02:08]}  a4 {[%clk 0:00:02]} 29. Nxd5 {[%clk 0:02:01]}  Qxd5 {[%clk 0:00:03]} 30. Qb4 {[%clk 0:02:01]}  Qb3 {[%clk 0:00:03]} 31. Qc5 {[%clk 0:02:00]}  b4 {[%clk 0:00:03]} 32. Qe5+ {[%clk 0:01:56]}  f6 {[%clk 0:00:03]} 33. Qe7+ {[%clk 0:01:54]}  Kh6 {[%clk 0:00:02]} 34. axb4 {[%clk 0:01:50]}  a3 {[%clk 0:00:02]} 35. Qf8+ {[%clk 0:01:48]}  Kg5 {[%clk 0:00:02]} 36. Qc5+ {[%clk 0:01:48]}  Kh6 {[%clk 0:00:01]} 37. Qf8+ {[%clk 0:01:48]}  Kh5 {[%clk 0:00:01]} 38. Qxf6 {[%clk 0:01:45]}  a2 {[%clk 0:00:01]} 39. g4+ {[%clk 0:01:45]}  Kh6 {[%clk 0:00:01]} 40. Qf8+ {[%clk 0:01:43]}  Kg5 {[%clk 0:00:01]} 41. Kg2 {[%clk 0:01:28]}  a1=Q {[%clk 0:00:01]} 42. f4+ {[%clk 0:01:28]}  Kh4 {[%clk 0:00:01]} 43. Qh6# {[%clk 0:01:29]} 1-0


[Site "https://www.chess.com"]

[Event "Titled Tuesday Blitz January 10 Early 2023"]
[White "Langner, Ladislav"]
[Black "Mkrtchian, Lilit"]
[WhiteFideId "300403"]
[BlackFideId "13300601"]
[WhiteElo "2368"]
[BlackElo "2389"]
[Result "0-1"]
[Round "06"]
[TimeControl "180+2"]
[Date "2023.01.10"]
[WhiteClock "0:00:01"]
[BlackClock "0:00:07"]

1. e4 {[%clk 0:03:00]}  e6 {[%clk 0:02:59]} 2. d4 {[%clk 0:03:01]}  d5 {[%clk 0:03:00]} 3. e5 {[%clk 0:03:01]}  c5 {[%clk 0:02:59]} 4. c3 {[%clk 0:03:02]}  Nc6 {[%clk 0:02:59]} 5. Nf3 {[%clk 0:03:03]}  Bd7 {[%clk 0:02:59]} 6. Be2 {[%clk 0:03:03]}  Nge7 {[%clk 0:02:58]} 7. a3 {[%clk 0:03:00]}  cxd4 {[%clk 0:02:40]} 8. cxd4 {[%clk 0:03:00]}  Nf5 {[%clk 0:02:40]} 9. Nc3 {[%clk 0:03:00]}  Rc8 {[%clk 0:02:36]} 10. O-O {[%clk 0:02:57]}  a6 {[%clk 0:02:36]} 11. g4 {[%clk 0:02:46]}  Nh4 {[%clk 0:02:33]} 12. Nxh4 {[%clk 0:02:46]}  Qxh4 {[%clk 0:02:33]} 13. Bf4 {[%clk 0:02:40]}  Qd8 {[%clk 0:01:59]} 14. Be3 {[%clk 0:02:33]}  Be7 {[%clk 0:01:30]} 15. f4 {[%clk 0:02:33]}  O-O {[%clk 0:01:29]} 16. Qe1 {[%clk 0:02:16]}  f6 {[%clk 0:01:26]} 17. Bd3 {[%clk 0:02:09]}  Qb6 {[%clk 0:00:47]} 18. Qh4 {[%clk 0:01:18]}  h6 {[%clk 0:00:46]} 19. Qh5 {[%clk 0:01:13]}  Be8 {[%clk 0:00:42]} 20. Bg6 {[%clk 0:01:13]}  Qxb2 {[%clk 0:00:35]} 21. Rac1 {[%clk 0:00:59]}  Na5 {[%clk 0:00:24]} 22. Bxe8 {[%clk 0:00:56]}  Rxc3 {[%clk 0:00:19]} 23. Rxc3 {[%clk 0:00:34]}  Qxc3 {[%clk 0:00:19]} 24. Bf2 {[%clk 0:00:34]}  fxe5 {[%clk 0:00:19]} 25. fxe5 {[%clk 0:00:31]}  Nc4 {[%clk 0:00:17]} 26. Qg6 {[%clk 0:00:24]}  Kh8 {[%clk 0:00:14]} 27. Qxe6 {[%clk 0:00:14]}  Rxe8 {[%clk 0:00:13]} 28. Qf7 {[%clk 0:00:14]}  Rc8 {[%clk 0:00:09]} 29. Qxe7 {[%clk 0:00:13]}  Nd2 {[%clk 0:00:09]} 30. Qe6 {[%clk 0:00:06]}  Nxf1 {[%clk 0:00:07]} 31. Kxf1 {[%clk 0:00:04]}  Qc4+ {[%clk 0:00:07]} 32. Kg2 {[%clk 0:00:04]}  Rf8 {[%clk 0:00:07]} 33. Qe7 {[%clk 0:00:01]}  Qc8 {[%clk 0:00:07]} 34. e6 {[%clk 0:00:01]}  Qe8 {[%clk 0:00:07]} 0-1


[Site "https://www.chess.com"]

[Event "Titled Tuesday Blitz January 10 Early 2023"]
[White "Baches Garcia, Guillermo"]
[Black "Balint, Vilmos"]
[WhiteFideId "2209764"]
[BlackFideId "718050"]
[WhiteElo "2327"]
[BlackElo "2169"]
[Result "1/2-1/2"]
[Round "06"]
[TimeControl "180+2"]
[Date "2023.01.10"]
[WhiteClock "0:00:48"]
[BlackClock "0:01:07"]

1. e4 {[%clk 0:03:00]}  e6 {[%clk 0:02:11]} 2. d4 {[%clk 0:02:59]}  d5 {[%clk 0:02:12]} 3. exd5 {[%clk 0:03:00]}  exd5 {[%clk 0:02:12]} 4. Nf3 {[%clk 0:03:00]}  Nf6 {[%clk 0:02:12]} 5. Bd3 {[%clk 0:02:59]}  Be7 {[%clk 0:02:13]} 6. O-O {[%clk 0:02:59]}  O-O {[%clk 0:02:14]} 7. Bg5 {[%clk 0:02:59]}  Re8 {[%clk 0:02:15]} 8. Nbd2 {[%clk 0:03:00]}  h6 {[%clk 0:02:16]} 9. Bh4 {[%clk 0:02:59]}  c6 {[%clk 0:02:16]} 10. c3 {[%clk 0:02:59]}  Bg4 {[%clk 0:02:16]} 11. Qc2 {[%clk 0:02:59]}  Nbd7 {[%clk 0:02:16]} 12. Rae1 {[%clk 0:02:58]}  Qb6 {[%clk 0:02:15]} 13. Ne5 {[%clk 0:02:50]}  Nxe5 {[%clk 0:02:13]} 14. dxe5 {[%clk 0:02:51]}  Nd7 {[%clk 0:02:12]} 15. Bg3 {[%clk 0:02:42]}  Nc5 {[%clk 0:02:12]} 16. Bh7+ {[%clk 0:02:33]}  Kh8 {[%clk 0:02:12]} 17. Bf5 {[%clk 0:02:32]}  Bxf5 {[%clk 0:02:11]} 18. Qxf5 {[%clk 0:02:32]}  Qxb2 {[%clk 0:02:09]} 19. Nf3 {[%clk 0:02:24]}  Kg8 {[%clk 0:02:07]} 20. e6 {[%clk 0:02:21]}  fxe6 {[%clk 0:01:44]} 21. Rxe6 {[%clk 0:02:09]}  Nxe6 {[%clk 0:01:44]} 22. Qxe6+ {[%clk 0:02:09]}  Kh8 {[%clk 0:01:42]} 23. Ne5 {[%clk 0:01:45]}  Bf6 {[%clk 0:01:39]} 24. Nf7+ {[%clk 0:01:33]}  Kh7 {[%clk 0:01:38]} 25. Qf5+ {[%clk 0:01:27]}  Kg8 {[%clk 0:01:38]} 26. Nxh6+ {[%clk 0:01:22]}  gxh6 {[%clk 0:01:35]} 27. Qxf6 {[%clk 0:01:22]}  Qc2 {[%clk 0:01:26]} 28. Be5 {[%clk 0:01:08]}  Qh7 {[%clk 0:01:25]} 29. f4 {[%clk 0:01:07]}  Re7 {[%clk 0:01:18]} 30. Rf3 {[%clk 0:01:01]}  Qb1+ {[%clk 0:01:08]} 31. Rf1 {[%clk 0:00:48]}  Qh7 {[%clk 0:01:07]} 32. Rf3 {[%clk 0:00:48]}  Qb1+ {[%clk 0:01:07]} 33. Rf1 {[%clk 0:00:48]}  Qh7 {[%clk 0:01:07]} 1/2-1/2


[Site "https://www.chess.com"]

[Event "Titled Tuesday Blitz January 10 Early 2023"]
[White "Gjestemoen-VonHirsch, Andre"]
[Black "Kuzmin, Roman"]
[WhiteFideId "1539531"]
[BlackFideId "44134932"]
[WhiteElo "2314"]
[BlackElo "2198"]
[Result "1-0"]
[Round "06"]
[TimeControl "180+2"]
[Date "2023.01.10"]
[WhiteClock "0:00:43"]
[BlackClock "0:00:01"]

1. d4 {[%clk 0:03:00]}  Nf6 {[%clk 0:02:59]} 2. Nf3 {[%clk 0:03:00]}  e6 {[%clk 0:02:58]} 3. Bf4 {[%clk 0:02:57]}  b6 {[%clk 0:02:56]} 4. e3 {[%clk 0:02:56]}  Bb7 {[%clk 0:02:55]} 5. Nbd2 {[%clk 0:02:54]}  d6 {[%clk 0:02:56]} 6. Bd3 {[%clk 0:02:41]}  Nbd7 {[%clk 0:02:52]} 7. c3 {[%clk 0:02:34]}  g6 {[%clk 0:02:52]} 8. Qe2 {[%clk 0:02:29]}  Bg7 {[%clk 0:02:52]} 9. Rd1 {[%clk 0:02:19]}  Qe7 {[%clk 0:02:49]} 10. Ba6 {[%clk 0:02:12]}  Bc6 {[%clk 0:02:22]} 11. e4 {[%clk 0:02:07]}  e5 {[%clk 0:02:17]} 12. Bg3 {[%clk 0:01:55]}  exd4 {[%clk 0:01:47]} 13. Nxd4 {[%clk 0:01:54]}  Bxe4 {[%clk 0:01:47]} 14. Nxe4 {[%clk 0:01:40]}  Qxe4 {[%clk 0:01:48]} 15. O-O {[%clk 0:01:31]}  Qxe2 {[%clk 0:01:42]} 16. Bxe2 {[%clk 0:01:30]}  O-O {[%clk 0:01:38]} 17. Bf3 {[%clk 0:01:27]}  Rae8 {[%clk 0:01:34]} 18. Nb5 {[%clk 0:01:27]}  Ne5 {[%clk 0:01:14]} 19. Bxe5 {[%clk 0:01:28]}  dxe5 {[%clk 0:01:08]} 20. Nxc7 {[%clk 0:01:28]}  Rd8 {[%clk 0:00:57]} 21. Nb5 {[%clk 0:01:11]}  e4 {[%clk 0:00:50]} 22. Be2 {[%clk 0:01:12]}  a5 {[%clk 0:00:41]} 23. Nd6 {[%clk 0:00:56]}  h5 {[%clk 0:00:19]} 24. Bc4 {[%clk 0:00:53]}  Rd7 {[%clk 0:00:04]} 25. Nxe4 {[%clk 0:00:43]}  Rxd1 {[%clk 0:00:01]} 26. Nxf6+ {[%clk 0:00:43]} 1-0


[Site "https://www.chess.com"]